fUST/lending_fUST_20260304
["ID","MTS","AMOUNT","RATE_DAILY","PERIOD"]
[407650615,1772615436327,-500.0,0.00010958,2]
[407650616,1772615436336,-500.0,0.00010958,2]
[407650617,1772615436346,-500.0,0.00010958,2]
[407650618,1772615436355,-500.0,0.00010958,2]
[407650619,1772615436365,-4728.84,0.00010958,2]
[407650620,1772615436376,-527.91,0.00010958,2]
[407650621,1772615436385,-4364.93,0.00010958,2]
[407650622,1772615436395,-552.92,0.00010958,2]
[407650623,1772615436405,-500.0,0.00010958,2]
[407650624,1772615436415,-611.14,0.00010958,2]
[407650625,1772615436424,-500.0,0.00010958,2]
[407650626,1772615436433,-515.70897026,0.00010958,2]
[407650627,1772615436442,-1252.97,0.00010958,2]
[407650628,1772615436450,-2524.52,0.00010958,2]
[407650629,1772615436458,-500.0,0.00010958,2]
[407650630,1772615436466,-500.0,0.00010958,2]
[407650631,1772615436475,-500.0,0.00010958,2]
[407650632,1772615436484,-500.0,0.00010958,2]
[407650633,1772615436492,-500.0,0.00010958,2]
[407650634,1772615436501,-1344.84,0.00010958,2]
[407650635,1772615436510,-500.0,0.00010958,2]
[407650636,1772615436519,-500.0,0.00010958,2]
[407650637,1772615436528,-501.62125214,0.00010958,2]
[407650638,1772615436538,-500.0,0.00010958,2]
[407650639,1772615436547,-500.0,0.00010958,2]
[407650640,1772615436557,-500.0,0.00010958,2]
[407650641,1772615436567,-585.65,0.00010958,2]
[407650642,1772615436576,-613.39,0.00010958,2]
[407650643,1772615436585,-698.48,0.00010958,2]
[407650644,1772615436595,-500.0,0.00010958,2]
[407650645,1772615436606,-1524.63,0.00010958,2]
[407650646,1772615436616,-1885.77,0.00010958,2]
[407650647,1772615436627,-500.0,0.00010958,2]
[407650648,1772615436637,-1239.07,0.00010958,2]
[407650649,1772615436647,-500.0,0.00010958,2]
[407650650,1772615436657,-1332.86,0.00010958,2]
[407650651,1772615436666,-500.0,0.00010958,2]
[407650652,1772615436676,-500.0,0.00010958,2]
[407650653,1772615436685,-500.0,0.00010958,2]
[407650654,1772615436695,-890.19,0.00010958,2]
[407650655,1772615436705,-500.0,0.00010958,2]
[407650656,1772615436714,-1421.03,0.00010958,2]
[407650657,1772615436724,-500.0,0.00010958,2]
[407650658,1772615436733,-3223.34,0.00010958,2]
[407650659,1772615436743,-1484.52,0.00010958,2]
[407650660,1772615436752,-500.0,0.00010958,2]
[407650661,1772615436762,-500.0,0.00010958,2]
[407650662,1772615436771,-500.0,0.00010958,2]
[407650663,1772615436781,-500.0,0.00010958,2]
[407650664,1772615436791,-500.0,0.00010958,2]
[407650665,1772615436800,-532.03,0.00010958,2]
[407650666,1772615436810,-633.571772,0.00010958,2]
[407650667,1772615436820,-500.0,0.00010958,2]
[407650668,1772615436829,-578.41,0.00010958,2]
[407650669,1772615436839,-500.0,0.00010958,2]
[407650670,1772615436848,-1177.91,0.00010958,2]
[407650671,1772615436859,-2847.77,0.00010958,2]
[407650672,1772615436869,-500.0,0.00010958,2]
[407650673,1772615436880,-511.51,0.00010958,2]
[407650674,1772615436890,-674.31,0.00010958,2]
[407650675,1772615436900,-500.0,0.00010958,2]
[407650676,1772615436909,-2186.1,0.00010958,2]
[407650677,1772615436919,-150.28235034,0.00010958,2]
[407650678,1772615437447,-986.04764966,0.00010958,2]
[407650679,1772615437457,-500.0,0.00010958,2]
[407650680,1772615437467,-512.12016088,0.00010958,2]
[407650760,1772615438850,-300.0,8.878e-05,2]
[407650762,1772615438860,-300.0,8.878e-05,2]
[407650764,1772615438869,-300.0,8.878e-05,2]
[407650766,1772615438879,-300.0,8.878e-05,2]
[407650768,1772615438888,-300.0,8.878e-05,2]
[407650770,1772615438897,-300.0,8.878e-05,2]
[407650772,1772615438905,-300.0,8.878e-05,2]
[407650774,1772615438914,-300.0,8.878e-05,2]
[407650776,1772615438924,-300.0,8.878e-05,2]
[407650778,1772615438933,-300.0,8.878e-05,2]
[407650780,1772615438943,-312.44484635,9.998e-05,2]
[407650782,1772615438959,-300.0,8.878e-05,2]
[407650785,1772615438969,-187.55515365,9.998e-05,2]
[407650786,1772615438980,-500.0,9.998e-05,2]
[407650788,1772615438989,-500.0,9.998e-05,2]
[407650789,1772615438999,-500.0,9.998e-05,2]
[407650790,1772615439008,-500.0,9.998e-05,2]
[407650791,1772615439017,-500.0,9.998e-05,2]
[407650792,1772615439027,-401.28459995,9.998e-05,2]
[407650793,1772615439036,-500.0,9.998e-05,2]
[407650794,1772615439045,-502.02925744,9.998e-05,2]
[407650795,1772615439054,-500.0,9.998e-05,2]
[407650796,1772615439063,-500.0,9.998e-05,2]
[407650797,1772615439072,-500.0,9.998e-05,2]
[407650798,1772615439081,-500.0,9.998e-05,2]
[407650799,1772615439091,-500.0,9.998e-05,2]
[407650800,1772615439100,-500.0,9.998e-05,2]
[407650801,1772615439109,-365.01657387,9.998e-05,2]
[407650802,1772615439119,-500.0,9.998e-05,2]
[407650803,1772615439128,-500.0,9.998e-05,2]
[407650804,1772615439138,-500.0,9.998e-05,2]
[407650805,1772615439147,-500.0,9.998e-05,2]
[407650806,1772615439156,-500.0,9.998e-05,2]
[407650807,1772615439165,-628.13591009,9.998e-05,2]
[407650808,1772615439174,-500.0,9.998e-05,2]
[407650809,1772615439183,-500.0,9.998e-05,2]
[407650810,1772615439192,-117.25927746,9.998e-05,2]
[407650832,1772615440733,-300.0,8.878e-05,2]
[407650834,1772615440743,-300.0,8.878e-05,2]
[407650836,1772615440752,-300.0,8.878e-05,2]
[407650838,1772615440761,-300.0,8.878e-05,2]
[407650840,1772615440771,-382.74072254,9.998e-05,2]
[407650842,1772615440780,-500.0,9.998e-05,2]
[407650844,1772615440789,-500.0,9.998e-05,2]
[407650846,1772615440799,-500.0,9.998e-05,2]
[407650848,1772615440808,-500.0,9.998e-05,2]
[407650851,1772615440818,-500.0,9.998e-05,2]
[407650853,1772615440827,-500.0,9.998e-05,2]
[407650855,1772615440839,-500.0,9.998e-05,2]
[407650857,1772615440848,-500.0,9.998e-05,2]
[407650859,1772615440858,-500.0,9.998e-05,2]
[407650861,1772615440868,-500.0,9.998e-05,2]
[407650862,1772615440877,-500.0,9.998e-05,2]
[407650865,1772615440887,-500.0,9.998e-05,2]
[407650866,1772615440896,-500.0,9.998e-05,2]
[407650869,1772615440905,-500.0,9.998e-05,2]
[407650871,1772615440915,-500.0,9.998e-05,2]
[407650873,1772615440924,-500.0,9.998e-05,2]
[407650875,1772615440940,-236.30333507,9.998e-05,2]
[407650877,1772615440949,-500.0,9.998e-05,2]
[407650879,1772615440959,-500.0,9.998e-05,2]
[407650881,1772615440968,-500.0,9.998e-05,2]
[407650883,1772615440978,-500.0,9.998e-05,2]
[407650885,1772615440987,-500.0,9.998e-05,2]
[407650887,1772615440997,-500.0,9.998e-05,2]
[407650889,1772615441007,-500.0,9.998e-05,2]
[407650891,1772615441016,-500.0,9.998e-05,2]
[407650893,1772615441026,-500.0,9.998e-05,2]
[407650895,1772615441035,-500.0,9.998e-05,2]
[407650897,1772615441044,-500.0,9.998e-05,2]
[407650899,1772615441054,-500.0,9.998e-05,2]
[407650901,1772615441063,-500.0,9.998e-05,2]
[407650903,1772615441073,-500.0,9.998e-05,2]
[407650905,1772615441083,-170.18983912,0.00010958,2]
[407650907,1772615441092,-500.0,0.00010958,2]
[407650909,1772615441102,-2215.64,0.00010958,2]
[407650911,1772615441111,-500.0,0.00010958,2]
[407650913,1772615441121,-500.0,0.00010958,2]
[407650915,1772615441133,-161.35372673,0.00010958,2]
[407650917,1772615441142,-500.0,0.00010958,2]
[407650919,1772615441152,-6671.65,0.00010958,2]
[407650922,1772615441163,-500.0,0.00010958,2]
[407650924,1772615441173,-500.0,0.00010958,2]
[407650926,1772615441182,-1704.59,0.00010958,2]
[407650928,1772615441192,-500.0,0.00010958,2]
[407650930,1772615441201,-695.34,0.00010958,2]
[407650932,1772615441216,-559.6,0.00010958,2]
[407650934,1772615441226,-500.0,0.00010958,2]
[407650936,1772615441237,-500.0,0.00010958,2]
[407650938,1772615441246,-1189.66,0.00010958,2]
[407650940,1772615441258,-700.99,0.00010958,2]
[407650942,1772615441268,-969.61,0.00010958,2]
[407650943,1772615441277,-1251.54,0.00010958,2]
[407650944,1772615441286,-291.08486286,0.00010958,2]
[407650945,1772615441295,-500.0,0.00010958,2]
[407650946,1772615441305,-500.0,0.00010958,2]
[407650947,1772615441315,-553.81,0.00010958,2]
[407650948,1772615441324,-2541.94,0.00010958,2]
[407650949,1772615441334,-1153.74,0.00010958,2]
[407650950,1772615441343,-531.42834024,0.00010958,2]
[407650961,1772615443330,-600.0,0.00010197,2]
[407650962,1772615443340,-44.0,0.00010958,2]
[407650983,1772615446221,-506.13165976,0.00010958,2]
[407650985,1772615446233,-500.0,0.00010958,2]
[407650987,1772615446244,-500.0,0.00010958,2]
[407650989,1772615446254,-993.86834024,0.00010958,2]
[407650990,1772615446269,-2137.21499205,0.00010958,2]
[407650991,1772615446812,-348.01294213,0.00010958,2]
[407651029,1772616632313,-1089.23622439,0.00010473,2]
[407651031,1772616632323,-567.0,0.00010473,2]
[407651033,1772616632332,-452.06320377,0.00010526,2]
[407651035,1772616632341,-161.67272263,0.00010739,2]
[407651037,1772616632350,-300.0,0.0001095,2]
[407651039,1772616632359,-168.3888056,0.00010951,2]
[407651041,1772616632368,-174.61919141,0.00010951,2]
[407651042,1772616632377,-181.08010149,0.00010951,2]
[407651044,1772616632386,-187.78006525,0.00010951,2]
[407651046,1772616632396,-557.5788265,0.00010951,2]
[407651048,1772616632405,-194.72792766,0.00010951,2]
[407651050,1772616632415,-201.93286099,0.00010951,2]
[407651052,1772616632423,-209.40437684,0.00010951,2]
[407651054,1772616632432,-217.15233878,0.00010951,2]
[407651056,1772616632441,-225.18697532,0.00010951,2]
[407651092,1772616632676,-233.51889341,0.00010951,2]
[407651096,1772616632715,-242.15909246,0.00010951,2]
[407651098,1772616632725,-251.11897888,0.00010951,2]
[407651100,1772616632734,-2230.315306,0.00010951,2]
[407651102,1772616632744,-260.4103811,0.00010951,2]
[407651103,1772616632754,-270.0455652,0.00010951,2]
[407651104,1772616632764,-280.03725112,0.00010951,2]
[407651105,1772616632773,-461.67526834,0.00010951,2]
[407651106,1772616632783,-290.39862941,0.00010951,2]
[407651107,1772616632793,-163.99692889,0.00010951,2]
[407651108,1772616632805,-301.1433787,0.00010951,2]
[407651109,1772616632815,-167.063,0.00010957,2]
[407651110,1772616632825,-377.92051111,0.00010957,2]
[407651111,1772616632835,-569.7928789,0.00010957,2]
[407651112,1772616632845,-223.75864862,0.00010957,2]
[407651113,1772616632855,-500.0,0.00010957,2]
[407651114,1772616632864,-500.0,0.00010957,2]
[407651115,1772616632874,-423.63033351,0.00010957,2]
[407651116,1772616632883,-485.00184154,0.00010957,2]
[407651117,1772616632893,-151.0,0.00010958,2]
[407651118,1772616632903,-500.0,0.00010958,2]
[407651119,1772616632912,-500.0,0.00010958,2]
[407651120,1772616632922,-413.1599608,0.00010958,2]
[407651121,1772616632931,-868.2,0.00010958,2]
[407651122,1772616632941,-466.04044159,0.00010958,2]
[407651164,1772616633443,-464.28955841,0.00010958,2]
[407651166,1772616633453,-517.67496315,0.00010958,2]
[407651168,1772616633462,-107.27170283,0.00010958,2]
[407651170,1772616633478,-392.72829717,0.00010958,2]
[407651172,1772616633488,-500.0,0.00010958,2]
[407651174,1772616633497,-500.0,0.00010958,2]
[407651176,1772616633506,-500.0,0.00010958,2]
[407651179,1772616633516,-500.0,0.00010958,2]
[407651181,1772616633525,-500.0,0.00010958,2]
[407651183,1772616633534,-500.0,0.00010958,2]
[407651184,1772616633543,-500.0,0.00010958,2]
[407651186,1772616633552,-510.59,0.00010958,2]
[407651189,1772616633562,-500.0,0.00010958,2]
[407651191,1772616633572,-500.0,0.00010958,2]
[407651193,1772616633584,-859.21,0.00010958,2]
[407651194,1772616633593,-500.0,0.00010958,2]
[407651196,1772616633603,-500.0,0.00010958,2]
[407651198,1772616633612,-500.0,0.00010958,2]
[407651201,1772616633623,-725.51,0.00010958,2]
[407651202,1772616633632,-500.0,0.00010958,2]
[407651205,1772616633642,-1290.43,0.00010958,2]
[407651207,1772616633653,-1265.8,0.00010958,2]
[407651209,1772616633662,-158.93840636,0.00010958,2]
[407651211,1772616633680,-657.37,0.00010958,2]
[407651213,1772616633700,-1282.89,0.00010958,2]
[407651214,1772616633711,-500.0,0.00010958,2]
[407651217,1772616633722,-802.99,0.00010958,2]
[407651218,1772616633732,-500.0,0.00010958,2]
[407651220,1772616633743,-500.0,0.00010958,2]
[407651222,1772616633752,-500.0,0.00010958,2]
[407651224,1772616633763,-993.97,0.00010958,2]
[407651227,1772616633773,-500.0,0.00010958,2]
[407651229,1772616633783,-632.19,0.00010958,2]
[407651231,1772616633794,-500.0,0.00010958,2]
[407651233,1772616633805,-778.87,0.00010958,2]
[407651234,1772616633818,-500.0,0.00010958,2]
[407651236,1772616633827,-500.0,0.00010958,2]
[407651238,1772616633836,-1389.17,0.00010958,2]
[407651241,1772616633847,-479.53578113,0.00010958,2]
[407651242,1772616633856,-583.23,0.00010958,2]
[407651243,1772616633865,-500.0,0.00010958,2]
[407651244,1772616633875,-500.0,0.00010958,2]
[407651245,1772616633886,-500.0,0.00010958,2]
[407651246,1772616633896,-500.0,0.00010958,2]
[407651247,1772616633905,-500.0,0.00010958,2]
[407651248,1772616633914,-783.67,0.00010958,2]
[407651249,1772616633924,-796.35,0.00010958,2]
[407651250,1772616633934,-500.0,0.00010958,2]
[407651251,1772616633944,-500.0,0.00010958,2]
[407651252,1772616633952,-500.0,0.00010958,2]
[407651253,1772616633961,-500.0,0.00010958,2]
[407651254,1772616633970,-500.0,0.00010958,2]
[407651255,1772616633980,-500.0,0.00010958,2]
[407651256,1772616633989,-500.0,0.00010958,2]
[407651257,1772616633998,-500.0,0.00010958,2]
[407651259,1772616634008,-500.0,0.00010958,2]
[407651260,1772616634017,-500.0,0.00010958,2]
[407651262,1772616634027,-740.76,0.00010958,2]
[407651264,1772616634037,-565.13,0.00010958,2]
[407651266,1772616634047,-500.0,0.00010958,2]
[407651268,1772616634057,-500.0,0.00010958,2]
[407651270,1772616634067,-889.08,0.00010958,2]
[407651271,1772616634078,-500.0,0.00010958,2]
[407651272,1772616634087,-263.3065492,0.00010958,2]
[407651273,1772616634096,-500.0,0.00010958,2]
[407651274,1772616634107,-500.0,0.00010958,2]
[407651275,1772616634117,-569.11,0.00010958,2]
[407651276,1772616634127,-500.0,0.00010958,2]
[407651277,1772616634137,-492.51116849,0.00010958,2]
[407651278,1772616634149,-608.29,0.00010958,2]
[407651279,1772616634160,-500.0,0.00010958,2]
[407651280,1772616634171,-500.0,0.00010958,2]
[407651281,1772616634183,-500.0,0.00010958,2]
[407651282,1772616634195,-500.0,0.00010958,2]
[407651283,1772616634206,-500.0,0.00010958,2]
[407651284,1772616634218,-500.0,0.00010958,2]
[407651285,1772616634229,-2050.28,0.00010958,2]
[407651286,1772616634239,-1475.88,0.00010958,2]
[407651287,1772616634249,-500.0,0.00010958,2]
[407651288,1772616634258,-529.88,0.00010958,2]
[407651289,1772616634267,-1018.52,0.00010958,2]
[407651290,1772616634278,-500.0,0.00010958,2]
[407651291,1772616634297,-500.0,0.00010958,2]
[407651292,1772616634310,-551.96309126,0.00010958,2]
[407651293,1772616634321,-703.36,0.00010958,2]
[407651294,1772616634339,-506.03,0.00010958,2]
[407651295,1772616634353,-500.0,0.00010958,2]
[407651296,1772616634363,-500.0,0.00010958,2]
[407651297,1772616634374,-241.02113114,0.00010958,2]
[407651298,1772616634393,-500.0,0.00010958,2]
[407651299,1772616634402,-500.0,0.00010958,2]
[407651300,1772616634413,-500.0,0.00010958,2]
[407651301,1772616634424,-545.07,0.00010958,2]
[407651302,1772616634434,-500.0,0.00010958,2]
[407651303,1772616634447,-1468.99,0.00010958,2]
[407651304,1772616634458,-500.0,0.00010958,2]
[407651305,1772616634468,-1277.32,0.00010958,2]
[407651306,1772616634480,-500.0,0.00010958,2]
[407651307,1772616634493,-1149.82,0.00010958,2]
[407651308,1772616634502,-500.0,0.00010958,2]
[407651309,1772616634515,-500.0,0.00010958,2]
[407651310,1772616634529,-505.91,0.00010958,2]
[407651311,1772616634541,-913.64,0.00010958,2]
[407651312,1772616634555,-500.0,0.00010958,2]
[407651313,1772616634565,-1336.89,0.00010958,2]
[407651314,1772616634583,-500.0,0.00010958,2]
[407651315,1772616634596,-500.0,0.00010958,2]
[407651316,1772616634608,-500.0,0.00010958,2]
[407651317,1772616634620,-1088.98,0.00010958,2]
[407651318,1772616634633,-500.0,0.00010958,2]
[407651319,1772616634646,-500.0,0.00010958,2]
[407651320,1772616634657,-669.37,0.00010958,2]
[407651321,1772616634668,-500.0,0.00010958,2]
[407651322,1772616634678,-500.0,0.00010958,2]
[407651323,1772616634687,-623.96,0.00010958,2]
[407651324,1772616634698,-500.0,0.00010958,2]
[407651325,1772616634708,-500.0,0.00010958,2]
[407651326,1772616634719,-732.92,0.00010958,2]
[407651327,1772616634729,-500.0,0.00010958,2]
[407651328,1772616634739,-500.0,0.00010958,2]
[407651329,1772616634748,-500.0,0.00010958,2]
[407651330,1772616634759,-769.6,0.00010958,2]
[407651331,1772616634768,-500.0,0.00010958,2]
[407651332,1772616634779,-646.21,0.00010958,2]
[407651333,1772616634790,-531.42,0.00010958,2]
[407651334,1772616634802,-500.0,0.00010958,2]
[407651335,1772616634812,-500.0,0.00010958,2]
[407651336,1772616634822,-500.0,0.00010958,2]
[407651337,1772616634832,-500.0,0.00010958,2]
[407651338,1772616634842,-536.29,0.00010958,2]
[407651339,1772616634853,-151.0,0.00010958,2]
[407651340,1772616634862,-151.0,0.00010958,2]
[407651341,1772616634873,-151.0,0.00010958,2]
[407651342,1772616634883,-151.0,0.00010958,2]
[407651343,1772616634895,-151.0,0.00010958,2]
[407651344,1772616634904,-500.0,0.00010958,2]
[407651345,1772616634914,-500.0,0.00010958,2]
[407651346,1772616634924,-500.0,0.00010958,2]
[407651347,1772616634934,-500.0,0.00010958,2]
[407651348,1772616634945,-500.0,0.00010958,2]
[407651349,1772616634955,-500.0,0.00010958,2]
[407651350,1772616634965,-500.0,0.00010958,2]
[407651351,1772616634975,-500.0,0.00010958,2]
[407651352,1772616634987,-567.33,0.00010958,2]
[407651353,1772616634996,-509.86,0.00010958,2]
[407651354,1772616635005,-2851.68,0.00010958,2]
[407651355,1772616635014,-328.03460637,0.00010958,2]
[407651744,1772616681707,-3885.9488046,0.0001074,2]
[407651755,1772617803450,152.0,6.9e-05,2]
[407651794,1772617832434,-1187.04493922,9.462e-05,2]
[407651796,1772617832443,-1212.57118219,9.558e-05,2]
[407651798,1772617832452,-554.0,9.558e-05,2]
[407651800,1772617832461,-3925.1378426,9.852e-05,2]
[407651802,1772617832470,-456.38912315,9.882e-05,2]
[407651804,1772617832479,-1200.0,0.00010799,2]
[407651806,1772617832488,-381.00984745,0.000108,2]
[407651809,1772617832497,-622.07065057,0.000108,2]
[407651812,1772617832506,-210.08936234,0.00010848,10]
[407651814,1772617832515,-300.0,0.00010899,2]
[407651817,1772617832524,-300.0,0.00010899,2]
[407651820,1772617832533,-463.53392202,0.000109,2]
[407651848,1772617832794,-300.0,0.00010931,2]
[407651849,1772617832803,-300.0,0.00010931,2]
[407651851,1772617832812,-390.282708,0.00010932,2]
[407651852,1772617832821,-3299.97861298,0.00010932,2]
[407651853,1772617832830,-168.3888056,0.00010951,2]
[407651854,1772617832839,-557.5788265,0.00010951,2]
[407651855,1772617832848,-174.61919141,0.00010951,2]
[407651856,1772617832857,-181.08010149,0.00010951,2]
[407651857,1772617832866,-187.78006525,0.00010951,2]
[407651858,1772617832874,-194.72792766,0.00010951,2]
[407651859,1772617832882,-201.93286099,0.00010951,2]
[407651860,1772617832890,-209.40437684,0.00010951,2]
[407651861,1772617832899,-217.15233878,0.00010951,2]
[407651862,1772617832908,-225.18697532,0.00010951,2]
[407651863,1772617832919,-233.51889341,0.00010951,2]
[407651864,1772617832928,-2230.315306,0.00010951,2]
[407651865,1772617832943,-242.15909246,0.00010951,2]
[407651866,1772617832953,-251.11897888,0.00010951,2]
[407651867,1772617832962,-260.4103811,0.00010951,2]
[407651868,1772617832971,-270.0455652,0.00010951,2]
[407651869,1772617832982,-346.93785643,0.00010951,2]
[407651870,1772617832991,-280.03725112,0.00010951,2]
[407651871,1772617833001,-290.39862941,0.00010951,2]
[407651872,1772617833013,-301.1433787,0.00010951,2]
[407651873,1772617833022,-167.065,0.00010957,2]
[407651874,1772617833031,-158.18114817,0.00010957,2]
[407651875,1772617833041,-151.0,0.00010958,2]
[407651876,1772617833051,-500.0,0.00010958,2]
[407651877,1772617833061,-500.0,0.00010958,2]
[407651878,1772617833071,-200.0,0.00010958,2]
[407651879,1772617833080,-500.0,0.00010958,2]
[407651880,1772617833090,-500.0,0.00010958,2]
[407651881,1772617833100,-1633.57,0.00010958,2]
[407651882,1772617833109,-862.68,0.00010958,2]
[407651883,1772617833119,-671.78,0.00010958,2]
[407651884,1772617833129,-500.0,0.00010958,2]
[407651885,1772617833139,-500.0,0.00010958,2]
[407651886,1772617833148,-500.0,0.00010958,2]
[407651887,1772617833158,-500.0,0.00010958,2]
[407651888,1772617833167,-500.0,0.00010958,2]
[407651889,1772617833177,-500.0,0.00010958,2]
[407651890,1772617833187,-440.29586295,0.00010958,2]
[407651891,1772617833197,-500.0,0.00010958,2]
[407651892,1772617833207,-608.9,0.00010958,2]
[407651893,1772617833216,-500.0,0.00010958,2]
[407651894,1772617833226,-205.52849043,0.00010958,2]
[407651895,1772617833236,-851.92,0.00010958,2]
[407651896,1772617833245,-500.0,0.00010958,2]
[407651897,1772617833255,-500.0,0.00010958,2]
[407651898,1772617833265,-500.0,0.00010958,2]
[407651899,1772617833275,-500.0,0.00010958,2]
[407651900,1772617833284,-1102.4,0.00010958,2]
[407651901,1772617833294,-861.95,0.00010958,2]
[407651902,1772617833303,-500.0,0.00010958,2]
[407651903,1772617833313,-503.75,0.00010958,2]
[407651904,1772617833322,-500.0,0.00010958,2]
[407651905,1772617833331,-2101.18,0.00010958,2]
[407651906,1772617833339,-500.0,0.00010958,2]
[407651907,1772617833347,-853.29,0.00010958,2]
[407651908,1772617833356,-877.08,0.00010958,2]
[407651909,1772617833366,-500.0,0.00010958,2]
[407651910,1772617833376,-500.0,0.00010958,2]
[407651911,1772617833386,-500.0,0.00010958,2]
[407651912,1772617833395,-500.0,0.00010958,2]
[407651913,1772617833405,-836.77,0.00010958,2]
[407651914,1772617833414,-500.0,0.00010958,2]
[407651915,1772617833423,-1030.24,0.00010958,2]
[407651916,1772617833433,-679.3,0.00010958,2]
[407651917,1772617833442,-813.53,0.00010958,2]
[407651918,1772617833451,-2732.64,0.00010958,2]
[407651919,1772617833461,-500.0,0.00010958,2]
[407651920,1772617833471,-500.0,0.00010958,2]
[407651921,1772617833481,-500.0,0.00010958,2]
[407651922,1772617833491,-500.0,0.00010958,2]
[407651923,1772617833501,-500.0,0.00010958,2]
[407651924,1772617833511,-1987.26,0.00010958,2]
[407651925,1772617833522,-2261.94,0.00010958,2]
[407651926,1772617833531,-666.04,0.00010958,2]
[407651927,1772617833541,-737.1,0.00010958,2]
[407651928,1772617833551,-468.8753818,0.00010958,2]
[407651929,1772617833560,-500.0,0.00010958,2]
[407651930,1772617833570,-500.0,0.00010958,2]
[407651931,1772617833579,-500.0,0.00010958,2]
[407651932,1772617833588,-321.52948662,0.00010958,2]
[407651933,1772617833598,-777.72,0.00010958,2]
[407651934,1772617833607,-500.0,0.00010958,2]
[407651935,1772617833617,-500.0,0.00010958,2]
[407651936,1772617833627,-500.0,0.00010958,2]
[407651937,1772617833637,-500.0,0.00010958,2]
[407651938,1772617833647,-500.0,0.00010958,2]
[407651939,1772617833656,-175.332441,0.00010958,2]
[407651940,1772617833665,-500.0,0.00010958,2]
[407651941,1772617833675,-500.0,0.00010958,2]
[407651942,1772617833684,-746.0,0.00010958,2]
[407651943,1772617833694,-500.0,0.00010958,2]
[407651944,1772617833704,-500.0,0.00010958,2]
[407651945,1772617833713,-500.0,0.00010958,2]
[407651946,1772617833722,-500.0,0.00010958,2]
[407651947,1772617833731,-706.83,0.00010958,2]
[407651948,1772617833741,-500.0,0.00010958,2]
[407651949,1772617833750,-500.0,0.00010958,2]
[407651950,1772617833761,-410.0,0.00010958,2]
[407651951,1772617833770,-500.0,0.00010958,2]
[407651952,1772617833779,-2259.26,0.00010958,2]
[407651953,1772617833788,-500.0,0.00010958,2]
[407651954,1772617833798,-711.44,0.00010958,2]
[407651955,1772617833808,-237.07903308,0.00010958,2]
[407651956,1772617833817,-2732.86,0.00010958,2]
[407651957,1772617833826,-500.0,0.00010958,2]
[407651958,1772617833836,-500.0,0.00010958,2]
[407651959,1772617833846,-500.0,0.00010958,2]
[407651960,1772617833855,-828.96,0.00010958,2]
[407651961,1772617833865,-500.0,0.00010958,2]
[407651962,1772617833874,-692.04,0.00010958,2]
[407651963,1772617833884,-286.36672186,0.00010958,2]
[407651964,1772617833900,-882.23327814,0.00010958,2]
[407651965,1772617833910,-536.33,0.00010958,2]
[407651966,1772617833919,-840.29,0.00010958,2]
[407651967,1772617833928,-1294.91,0.00010958,2]
[407651968,1772617833942,-527.43,0.00010958,2]
[407651969,1772617833951,-500.0,0.00010958,2]
[407651970,1772617833962,-892.49,0.00010958,2]
[407651971,1772617833972,-627.65,0.00010958,2]
[407651972,1772617833983,-118.50406849,0.00010958,2]
[407651973,1772617833996,-381.49593151,0.00010958,2]